[Event "Titled Tuesday Blitz August 23 Early 2022"]
[White "Filgueira, Hernan"]
[Black "Shirov, Alexei"]
[WhiteFideId "101770"]
[BlackFideId "2209390"]
[WhiteElo "2363"]
[BlackElo "2678"]
[Result "1/2-1/2"]
[Round "02"]
[TimeControl "180+1"]
[Date "2022.08.23"]
[WhiteClock "0:00:38"]
[BlackClock "0:00:27"]

1. e4 {[%clk 0:02:58]}  c5 {[%clk 0:02:58]} 2. Nf3 {[%clk 0:02:55]}  d6 {[%clk 0:02:58]} 3. Bb5+ {[%clk 0:02:55]}  Bd7 {[%clk 0:02:57]} 4. Bxd7+ {[%clk 0:02:54]}  Qxd7 {[%clk 0:02:57]} 5. O-O {[%clk 0:02:55]}  Nf6 {[%clk 0:02:56]} 6. Re1 {[%clk 0:02:55]}  Nc6 {[%clk 0:02:55]} 7. b3 {[%clk 0:02:52]}  e5 {[%clk 0:02:41]} 8. Bb2 {[%clk 0:02:50]}  g6 {[%clk 0:02:38]} 9. c3 {[%clk 0:02:50]}  Bh6 {[%clk 0:02:32]} 10. d4 {[%clk 0:02:49]}  O-O {[%clk 0:02:29]} 11. Na3 {[%clk 0:02:42]}  Rad8 {[%clk 0:02:24]} 12. dxe5 {[%clk 0:02:36]}  dxe5 {[%clk 0:02:18]} 13. Qe2 {[%clk 0:02:23]}  Nh5 {[%clk 0:02:16]} 14. g3 {[%clk 0:02:07]}  Qg4 {[%clk 0:02:11]} 15. Kh1 {[%clk 0:02:07]}  Rd7 {[%clk 0:02:04]} 16. Nc4 {[%clk 0:02:06]}  f6 {[%clk 0:01:48]} 17. a4 {[%clk 0:01:47]}  Rfd8 {[%clk 0:01:46]} 18. Ng1 {[%clk 0:01:47]}  Qxe2 {[%clk 0:01:35]} 19. Nxe2 {[%clk 0:01:45]}  Ng7 {[%clk 0:01:33]} 20. Kg2 {[%clk 0:01:36]}  Ne6 {[%clk 0:01:33]} 21. Ng1 {[%clk 0:01:31]}  g5 {[%clk 0:01:25]} 22. h3 {[%clk 0:01:29]}  Bf8 {[%clk 0:01:21]} 23. Nf3 {[%clk 0:01:29]}  h5 {[%clk 0:01:21]} 24. Ne3 {[%clk 0:01:23]}  Rd3 {[%clk 0:01:18]} 25. Rad1 {[%clk 0:01:21]}  g4 {[%clk 0:01:16]} 26. hxg4 {[%clk 0:01:20]}  hxg4 {[%clk 0:01:15]} 27. Nh2 {[%clk 0:01:19]}  Rd2 {[%clk 0:01:05]} 28. Bc1 {[%clk 0:01:12]}  Ra2 {[%clk 0:01:03]} 29. Rxd8 {[%clk 0:01:11]}  Nexd8 {[%clk 0:00:59]} 30. Nhxg4 {[%clk 0:01:12]}  Kf7 {[%clk 0:00:58]} 31. Kf3 {[%clk 0:01:05]}  Na5 {[%clk 0:00:57]} 32. b4 {[%clk 0:01:00]}  cxb4 {[%clk 0:00:56]} 33. cxb4 {[%clk 0:01:00]}  Bxb4 {[%clk 0:00:55]} 34. Rd1 {[%clk 0:01:00]}  Nac6 {[%clk 0:00:55]} 35. Nf5 {[%clk 0:00:58]}  Rxa4 {[%clk 0:00:48]} 36. Rd7+ {[%clk 0:00:57]}  Ke6 {[%clk 0:00:46]} 37. Rh7 {[%clk 0:00:48]}  Be7 {[%clk 0:00:44]} 38. Ng7+ {[%clk 0:00:44]}  Kd7 {[%clk 0:00:40]} 39. Nh5 {[%clk 0:00:42]}  Kc8 {[%clk 0:00:37]} 40. Nhxf6 {[%clk 0:00:42]}  Rc4 {[%clk 0:00:37]} 41. Be3 {[%clk 0:00:41]}  Ne6 {[%clk 0:00:31]} 42. Nd5 {[%clk 0:00:40]}  Bg5 {[%clk 0:00:27]} 43. Rh8+ {[%clk 0:00:39]}  Kd7 {[%clk 0:00:27]} 44. Rh7+ {[%clk 0:00:37]}  Kc8 {[%clk 0:00:27]} 45. Rh8+ {[%clk 0:00:37]}  Kd7 {[%clk 0:00:27]} 46. Rh7+ {[%clk 0:00:38]}  Kc8 {[%clk 0:00:27]} 1/2-1/2


[Site "https://www.chess.com"]

[Event "Titled Tuesday Blitz August 23 Early 2022"]
[White "Gholami Orimi, Mahdi"]
[Black "Lewtak, Damian"]
[WhiteFideId "12558486"]
[BlackFideId "1141724"]
[WhiteElo "2354"]
[BlackElo "2329"]
[Result "1-0"]
[Round "02"]
[TimeControl "180+1"]
[Date "2022.08.23"]
[WhiteClock "0:00:18"]
[BlackClock "0:00:06"]

1. d4 {[%clk 0:03:00]}  b5 {[%clk 0:02:59]} 2. e4 {[%clk 0:02:57]}  a6 {[%clk 0:02:59]} 3. Bd3 {[%clk 0:02:54]}  Bb7 {[%clk 0:02:59]} 4. Nf3 {[%clk 0:02:52]}  e6 {[%clk 0:02:59]} 5. O-O {[%clk 0:02:52]}  g6 {[%clk 0:02:59]} 6. a4 {[%clk 0:02:49]}  b4 {[%clk 0:02:57]} 7. c3 {[%clk 0:02:49]}  bxc3 {[%clk 0:02:55]} 8. bxc3 {[%clk 0:02:49]}  Bg7 {[%clk 0:02:55]} 9. Qb3 {[%clk 0:02:47]}  Bc8 {[%clk 0:02:44]} 10. Nbd2 {[%clk 0:02:46]}  Ne7 {[%clk 0:02:43]} 11. Ba3 {[%clk 0:02:39]}  d6 {[%clk 0:02:42]} 12. e5 {[%clk 0:02:39]}  O-O {[%clk 0:02:39]} 13. Ne4 {[%clk 0:02:38]}  Nf5 {[%clk 0:02:33]} 14. Rad1 {[%clk 0:02:33]}  Re8 {[%clk 0:02:28]} 15. h3 {[%clk 0:02:29]}  d5 {[%clk 0:02:25]} 16. Nf6+ {[%clk 0:02:25]}  Bxf6 {[%clk 0:02:21]} 17. exf6 {[%clk 0:02:26]}  Qxf6 {[%clk 0:02:19]} 18. Ne5 {[%clk 0:02:23]}  Nd6 {[%clk 0:02:08]} 19. Bc1 {[%clk 0:02:11]}  Nd7 {[%clk 0:02:02]} 20. Rde1 {[%clk 0:02:08]}  Rb8 {[%clk 0:01:58]} 21. Qc2 {[%clk 0:02:01]}  Qh4 {[%clk 0:01:35]} 22. f4 {[%clk 0:01:58]}  Nxe5 {[%clk 0:01:32]} 23. fxe5 {[%clk 0:01:57]}  Nf5 {[%clk 0:01:32]} 24. Qe2 {[%clk 0:01:41]}  a5 {[%clk 0:01:24]} 25. Rf4 {[%clk 0:01:38]}  Qe7 {[%clk 0:01:14]} 26. Qf2 {[%clk 0:01:38]}  Bd7 {[%clk 0:01:08]} 27. g4 {[%clk 0:01:37]}  Ng7 {[%clk 0:01:07]} 28. Rf1 {[%clk 0:01:37]}  Rf8 {[%clk 0:01:07]} 29. Qa2 {[%clk 0:01:35]}  Qh4 {[%clk 0:00:39]} 30. Kg2 {[%clk 0:01:35]}  h5 {[%clk 0:00:33]} 31. Ba3 {[%clk 0:01:20]}  hxg4 {[%clk 0:00:30]} 32. hxg4 {[%clk 0:01:21]}  Qg5 {[%clk 0:00:28]} 33. Bxf8 {[%clk 0:01:15]}  Rxf8 {[%clk 0:00:29]} 34. Kh1 {[%clk 0:01:08]}  Rb8 {[%clk 0:00:23]} 35. Rxf7 {[%clk 0:01:02]}  Qxg4 {[%clk 0:00:19]} 36. Qg2 {[%clk 0:00:57]}  Qxg2+ {[%clk 0:00:15]} 37. Kxg2 {[%clk 0:00:57]}  Rd8 {[%clk 0:00:15]} 38. Bxg6 {[%clk 0:00:55]}  Nf5 {[%clk 0:00:15]} 39. R7xf5 {[%clk 0:00:33]}  exf5 {[%clk 0:00:15]} 40. Bxf5 {[%clk 0:00:34]}  Bxa4 {[%clk 0:00:14]} 41. Ra1 {[%clk 0:00:33]}  Bd7 {[%clk 0:00:13]} 42. Bxd7 {[%clk 0:00:32]}  Rxd7 {[%clk 0:00:14]} 43. Rxa5 {[%clk 0:00:31]}  Kf7 {[%clk 0:00:14]} 44. Kf3 {[%clk 0:00:31]}  Ke7 {[%clk 0:00:14]} 45. Kf4 {[%clk 0:00:30]}  Rd8 {[%clk 0:00:14]} 46. Rc5 {[%clk 0:00:24]}  Rd7 {[%clk 0:00:13]} 47. Kf5 {[%clk 0:00:24]}  Ke8 {[%clk 0:00:08]} 48. Ke6 {[%clk 0:00:24]}  Rh7 {[%clk 0:00:03]} 49. Kxd5 {[%clk 0:00:23]}  Kd7 {[%clk 0:00:03]} 50. Ra5 {[%clk 0:00:22]}  Rh3 {[%clk 0:00:03]} 51. c4 {[%clk 0:00:22]}  Rh4 {[%clk 0:00:03]} 52. Ra7 {[%clk 0:00:21]}  Kd8 {[%clk 0:00:03]} 53. e6 {[%clk 0:00:21]}  Rg4 {[%clk 0:00:02]} 54. Kc5 {[%clk 0:00:19]}  Rg6 {[%clk 0:00:01]} 55. d5 {[%clk 0:00:19]}  Rg5 {[%clk 0:00:01]} 56. Kc6 {[%clk 0:00:19]}  Rg4 {[%clk 0:00:02]} 57. c5 {[%clk 0:00:19]}  Ke7 {[%clk 0:00:03]} 58. Rxc7+ {[%clk 0:00:18]}  Kf6 {[%clk 0:00:04]} 59. Rf7+ {[%clk 0:00:19]}  Ke5 {[%clk 0:00:04]} 60. e7 {[%clk 0:00:18]}  Ra4 {[%clk 0:00:05]} 61. d6 {[%clk 0:00:18]}  Ke4 {[%clk 0:00:06]} 62. e8=Q+ {[%clk 0:00:18]}  Kd3 {[%clk 0:00:06]} 63. Rf3+ {[%clk 0:00:18]}  Kd2 {[%clk 0:00:05]} 64. Qe3+ {[%clk 0:00:18]}  Kc2 {[%clk 0:00:06]} 65. Rf2+ {[%clk 0:00:18]} 1-0


[Site "https://www.chess.com"]

[Event "Titled Tuesday Blitz August 23 Early 2022"]
[White "Grandelius, Nils"]
[Black "Harshad S"]
[WhiteFideId "1710400"]
[BlackFideId "46616551"]
[WhiteElo "2617"]
[BlackElo "2046"]
[Result "1-0"]
[Round "02"]
[TimeControl "180+1"]
[Date "2022.08.23"]
[WhiteClock "0:00:28"]
[BlackClock "0:00:04"]

1. Nf3 {[%clk 0:03:00]}  Nf6 {[%clk 0:02:56]} 2. c4 {[%clk 0:03:00]}  e6 {[%clk 0:02:47]} 3. Nc3 {[%clk 0:03:00]}  d5 {[%clk 0:02:47]} 4. e3 {[%clk 0:03:01]}  Be7 {[%clk 0:02:45]} 5. b3 {[%clk 0:03:00]}  O-O {[%clk 0:02:44]} 6. Bb2 {[%clk 0:03:01]}  c5 {[%clk 0:02:44]} 7. cxd5 {[%clk 0:03:00]}  exd5 {[%clk 0:02:44]} 8. d4 {[%clk 0:02:53]}  Nc6 {[%clk 0:02:43]} 9. Be2 {[%clk 0:02:45]}  Bg4 {[%clk 0:02:41]} 10. dxc5 {[%clk 0:02:44]}  Bxc5 {[%clk 0:02:39]} 11. O-O {[%clk 0:02:45]}  Re8 {[%clk 0:02:38]} 12. Rc1 {[%clk 0:02:44]}  Bf8 {[%clk 0:02:25]} 13. Nd4 {[%clk 0:02:33]}  Bxe2 {[%clk 0:02:20]} 14. Ncxe2 {[%clk 0:02:34]}  Rc8 {[%clk 0:02:20]} 15. Nxc6 {[%clk 0:02:31]}  bxc6 {[%clk 0:02:21]} 16. Nf4 {[%clk 0:02:19]}  Ne4 {[%clk 0:02:16]} 17. Qd4 {[%clk 0:02:14]}  Qb6 {[%clk 0:02:07]} 18. Rfd1 {[%clk 0:02:04]}  Qxd4 {[%clk 0:02:06]} 19. Bxd4 {[%clk 0:02:05]}  a5 {[%clk 0:02:06]} 20. Rc2 {[%clk 0:01:55]}  Bd6 {[%clk 0:01:40]} 21. Nd3 {[%clk 0:01:28]}  c5 {[%clk 0:01:34]} 22. Rdc1 {[%clk 0:01:28]}  Rc7 {[%clk 0:01:07]} 23. f3 {[%clk 0:01:11]}  cxd4 {[%clk 0:00:41]} 24. Rxc7 {[%clk 0:01:12]}  Bxc7 {[%clk 0:00:40]} 25. Rxc7 {[%clk 0:01:13]}  Nc3 {[%clk 0:00:41]} 26. exd4 {[%clk 0:01:07]}  Ne2+ {[%clk 0:00:22]} 27. Kf1 {[%clk 0:01:06]}  Nxd4 {[%clk 0:00:23]} 28. Rc5 {[%clk 0:00:57]}  Nf5 {[%clk 0:00:16]} 29. Rxa5 {[%clk 0:00:53]}  Ne3+ {[%clk 0:00:17]} 30. Kg1 {[%clk 0:00:48]}  g6 {[%clk 0:00:16]} 31. a4 {[%clk 0:00:34]}  d4 {[%clk 0:00:11]} 32. Re5 {[%clk 0:00:32]}  Rb8 {[%clk 0:00:10]} 33. b4 {[%clk 0:00:32]}  Nc2 {[%clk 0:00:11]} 34. b5 {[%clk 0:00:30]}  Rc8 {[%clk 0:00:11]} 35. Rc5 {[%clk 0:00:30]}  Rxc5 {[%clk 0:00:02]} 36. Nxc5 {[%clk 0:00:31]}  Nb4 {[%clk 0:00:02]} 37. a5 {[%clk 0:00:29]}  Kf8 {[%clk 0:00:03]} 38. a6 {[%clk 0:00:29]}  Nd5 {[%clk 0:00:04]} 39. a7 {[%clk 0:00:27]}  Nb6 {[%clk 0:00:04]} 40. Nd7+ {[%clk 0:00:28]} 1-0


[Site "https://www.chess.com"]

[Event "Titled Tuesday Blitz August 23 Early 2022"]
[White "Janaszak, Dawid"]
[Black "Alekseenko, Kirill"]
[WhiteFideId "1119206"]
[BlackFideId "4135539"]
[WhiteElo "2165"]
[BlackElo "2682"]
[Result "0-1"]
[Round "02"]
[TimeControl "180+1"]
[Date "2022.08.23"]
[WhiteClock "0:00:01"]
[BlackClock "0:00:10"]

1. e4 {[%clk 0:03:00]}  e5 {[%clk 0:02:58]} 2. Nf3 {[%clk 0:03:00]}  Nc6 {[%clk 0:02:59]} 3. d4 {[%clk 0:03:01]}  exd4 {[%clk 0:02:59]} 4. Nxd4 {[%clk 0:03:01]}  Qf6 {[%clk 0:02:59]} 5. Nf3 {[%clk 0:02:59]}  Bb4+ {[%clk 0:02:57]} 6. c3 {[%clk 0:02:48]}  Bc5 {[%clk 0:02:57]} 7. Bd3 {[%clk 0:02:21]}  d6 {[%clk 0:02:57]} 8. O-O {[%clk 0:02:14]}  h6 {[%clk 0:02:44]} 9. a4 {[%clk 0:02:11]}  a5 {[%clk 0:02:41]} 10. Na3 {[%clk 0:02:10]}  Nge7 {[%clk 0:02:41]} 11. Nb5 {[%clk 0:02:08]}  O-O {[%clk 0:02:19]} 12. Nxc7 {[%clk 0:02:06]}  Rb8 {[%clk 0:02:17]} 13. h3 {[%clk 0:02:01]}  Be6 {[%clk 0:02:08]} 14. Qe2 {[%clk 0:01:48]}  Ng6 {[%clk 0:02:06]} 15. Nd5 {[%clk 0:01:38]}  Bxd5 {[%clk 0:02:06]} 16. exd5 {[%clk 0:01:39]}  Rbe8 {[%clk 0:02:07]} 17. Qc2 {[%clk 0:01:36]}  Nce5 {[%clk 0:01:50]} 18. Nxe5 {[%clk 0:01:35]}  Rxe5 {[%clk 0:01:50]} 19. Bxg6 {[%clk 0:01:14]}  fxg6 {[%clk 0:01:49]} 20. Be3 {[%clk 0:01:08]}  Rxd5 {[%clk 0:01:38]} 21. Qb3 {[%clk 0:00:58]}  Qf7 {[%clk 0:01:37]} 22. Bxc5 {[%clk 0:00:51]}  dxc5 {[%clk 0:01:32]} 23. Rad1 {[%clk 0:00:42]}  Rxd1 {[%clk 0:01:31]} 24. Qxf7+ {[%clk 0:00:41]}  Kxf7 {[%clk 0:01:31]} 25. Rxd1 {[%clk 0:00:41]}  Ke6 {[%clk 0:01:32]} 26. Kf1 {[%clk 0:00:41]}  Rf4 {[%clk 0:01:28]} 27. b3 {[%clk 0:00:38]}  g5 {[%clk 0:01:13]} 28. c4 {[%clk 0:00:37]}  Rd4 {[%clk 0:00:50]} 29. Re1+ {[%clk 0:00:38]}  Kd7 {[%clk 0:00:48]} 30. Re5 {[%clk 0:00:34]}  Kd6 {[%clk 0:00:42]} 31. Re3 {[%clk 0:00:34]}  Rd1+ {[%clk 0:00:41]} 32. Ke2 {[%clk 0:00:33]}  Rb1 {[%clk 0:00:41]} 33. Kf3 {[%clk 0:00:30]}  Rb2 {[%clk 0:00:32]} 34. Kg3 {[%clk 0:00:26]}  h5 {[%clk 0:00:31]} 35. f3 {[%clk 0:00:19]}  b6 {[%clk 0:00:27]} 36. Rd3+ {[%clk 0:00:14]}  Ke6 {[%clk 0:00:27]} 37. Re3+ {[%clk 0:00:12]}  Kf5 {[%clk 0:00:28]} 38. Rd3 {[%clk 0:00:12]}  h4+ {[%clk 0:00:28]} 39. Kh2 {[%clk 0:00:13]}  Ke5 {[%clk 0:00:28]} 40. Rd5+ {[%clk 0:00:12]}  Kf4 {[%clk 0:00:28]} 41. Rd3 {[%clk 0:00:10]}  Rb1 {[%clk 0:00:29]} 42. Rd7 {[%clk 0:00:04]}  Rxb3 {[%clk 0:00:24]} 43. Rxg7 {[%clk 0:00:04]}  Rb4 {[%clk 0:00:24]} 44. Rf7+ {[%clk 0:00:03]}  Ke5 {[%clk 0:00:24]} 45. Rb7 {[%clk 0:00:03]}  Rxa4 {[%clk 0:00:11]} 46. Rxb6 {[%clk 0:00:03]}  Rxc4 {[%clk 0:00:12]} 47. Rb5 {[%clk 0:00:03]}  a4 {[%clk 0:00:12]} 48. Ra5 {[%clk 0:00:04]}  Kf4 {[%clk 0:00:11]} 49. Ra8 {[%clk 0:00:03]}  Rb4 {[%clk 0:00:11]} 50. Rc8 {[%clk 0:00:01]}  a3 {[%clk 0:00:09]} 51. Rxc5 {[%clk 0:00:01]}  Ra4 {[%clk 0:00:10]} 0-1


[Site "https://www.chess.com"]

[Event "Titled Tuesday Blitz August 23 Early 2022"]
[White "Jones, Gawain C B"]
[Black "Hnydiuk, Aleksander"]
[WhiteFideId "409561"]
[BlackFideId "1109057"]
[WhiteElo "2657"]
[BlackElo "2374"]
[Result "1-0"]
[Round "02"]
[TimeControl "180+1"]
[Date "2022.08.23"]
[WhiteClock "0:00:17"]
[BlackClock "0:00:24"]

1. e4 {[%clk 0:02:59]}  Nf6 {[%clk 0:03:00]} 2. e5 {[%clk 0:02:57]}  Nd5 {[%clk 0:03:00]} 3. d4 {[%clk 0:02:56]}  d6 {[%clk 0:03:00]} 4. Nf3 {[%clk 0:02:57]}  dxe5 {[%clk 0:03:01]} 5. Nxe5 {[%clk 0:02:57]}  c6 {[%clk 0:03:01]} 6. Be2 {[%clk 0:02:56]}  Nd7 {[%clk 0:03:02]} 7. Nf3 {[%clk 0:02:56]}  N7f6 {[%clk 0:03:02]} 8. O-O {[%clk 0:02:56]}  Bf5 {[%clk 0:03:02]} 9. c4 {[%clk 0:02:56]}  Nb6 {[%clk 0:03:00]} 10. Nc3 {[%clk 0:02:55]}  e6 {[%clk 0:02:57]} 11. Nh4 {[%clk 0:02:54]}  Bg6 {[%clk 0:02:54]} 12. Re1 {[%clk 0:02:50]}  Be7 {[%clk 0:02:52]} 13. Be3 {[%clk 0:02:40]}  Qc7 {[%clk 0:02:49]} 14. a4 {[%clk 0:02:32]}  Rd8 {[%clk 0:02:46]} 15. a5 {[%clk 0:02:31]}  Nc8 {[%clk 0:02:45]} 16. a6 {[%clk 0:02:22]}  b6 {[%clk 0:02:40]} 17. Bf3 {[%clk 0:02:17]}  Nd6 {[%clk 0:02:29]} 18. Qa4 {[%clk 0:02:12]}  O-O {[%clk 0:02:05]} 19. Nxg6 {[%clk 0:02:10]}  hxg6 {[%clk 0:02:06]} 20. Bxc6 {[%clk 0:01:57]}  Rc8 {[%clk 0:02:03]} 21. d5 {[%clk 0:01:55]}  e5 {[%clk 0:01:44]} 22. c5 {[%clk 0:01:40]}  bxc5 {[%clk 0:01:41]} 23. Bxc5 {[%clk 0:01:41]}  Qb8 {[%clk 0:01:23]} 24. Rxe5 {[%clk 0:01:20]}  Nde4 {[%clk 0:01:18]} 25. Bxe7 {[%clk 0:01:00]}  Qxe5 {[%clk 0:01:17]} 26. Bxf8 {[%clk 0:01:00]}  Rxf8 {[%clk 0:01:10]} 27. Nxe4 {[%clk 0:00:54]}  Nxe4 {[%clk 0:01:03]} 28. Re1 {[%clk 0:00:53]}  f5 {[%clk 0:01:03]} 29. f3 {[%clk 0:00:49]}  Qxb2 {[%clk 0:00:46]} 30. fxe4 {[%clk 0:00:44]}  fxe4 {[%clk 0:00:46]} 31. Qa1 {[%clk 0:00:38]}  Qf2+ {[%clk 0:00:43]} 32. Kh1 {[%clk 0:00:38]}  e3 {[%clk 0:00:43]} 33. d6 {[%clk 0:00:34]}  e2 {[%clk 0:00:42]} 34. Bb5 {[%clk 0:00:22]}  Qc5 {[%clk 0:00:25]} 35. Bxe2 {[%clk 0:00:21]}  Qxd6 {[%clk 0:00:24]} 36. Bc4+ {[%clk 0:00:18]}  Kh8 {[%clk 0:00:24]} 37. Re3 {[%clk 0:00:17]} 1-0


[Site "https://www.chess.com"]

[Event "Titled Tuesday Blitz August 23 Early 2022"]
[White "Korchmar, Vasiliy"]
[Black "Molina, Roberto Junio Brito"]
[WhiteFideId "24131750"]
[BlackFideId "2109450"]
[WhiteElo "2370"]
[BlackElo "2403"]
[Result "1-0"]
[Round "02"]
[TimeControl "180+1"]
[Date "2022.08.23"]
[WhiteClock "0:00:15"]
[BlackClock "0:00:10"]

1. e4 {[%clk 0:03:00]}  c6 {[%clk 0:02:59]} 2. d4 {[%clk 0:02:57]}  d5 {[%clk 0:03:00]} 3. e5 {[%clk 0:02:56]}  Bf5 {[%clk 0:03:00]} 4. c4 {[%clk 0:02:56]}  e6 {[%clk 0:03:00]} 5. Nc3 {[%clk 0:02:55]}  Ne7 {[%clk 0:03:00]} 6. a3 {[%clk 0:02:55]}  dxc4 {[%clk 0:02:57]} 7. Bxc4 {[%clk 0:02:52]}  Nd7 {[%clk 0:02:56]} 8. Nge2 {[%clk 0:02:52]}  Nb6 {[%clk 0:02:56]} 9. Ba2 {[%clk 0:02:52]}  Ned5 {[%clk 0:02:55]} 10. Ng3 {[%clk 0:02:50]}  Bg6 {[%clk 0:02:54]} 11. O-O {[%clk 0:02:51]}  Be7 {[%clk 0:02:54]} 12. f4 {[%clk 0:02:50]}  Qd7 {[%clk 0:02:42]} 13. Nce4 {[%clk 0:02:29]}  O-O-O {[%clk 0:02:35]} 14. Qf3 {[%clk 0:02:21]}  f5 {[%clk 0:02:24]} 15. Nc5 {[%clk 0:02:20]}  Bxc5 {[%clk 0:02:21]} 16. dxc5 {[%clk 0:02:20]}  Na8 {[%clk 0:02:03]} 17. b4 {[%clk 0:02:18]}  Nac7 {[%clk 0:02:02]} 18. Bb2 {[%clk 0:02:04]}  h6 {[%clk 0:02:00]} 19. Rad1 {[%clk 0:02:00]}  Bf7 {[%clk 0:01:53]} 20. Ne2 {[%clk 0:01:18]}  g5 {[%clk 0:01:52]} 21. Bxd5 {[%clk 0:01:03]}  Nxd5 {[%clk 0:01:47]} 22. Nc3 {[%clk 0:01:03]}  Qe7 {[%clk 0:01:35]} 23. Nxd5 {[%clk 0:01:03]}  Rxd5 {[%clk 0:01:26]} 24. Rxd5 {[%clk 0:01:02]}  cxd5 {[%clk 0:01:21]} 25. Bd4 {[%clk 0:01:03]}  Qd7 {[%clk 0:01:13]} 26. Qd3 {[%clk 0:00:53]}  Be8 {[%clk 0:01:10]} 27. c6 {[%clk 0:00:45]}  Qxc6 {[%clk 0:00:58]} 28. Bxa7 {[%clk 0:00:45]}  Qa4 {[%clk 0:00:55]} 29. Qd4 {[%clk 0:00:29]}  Bc6 {[%clk 0:00:43]} 30. Qc5 {[%clk 0:00:21]}  Rd8 {[%clk 0:00:13]} 31. Rc1 {[%clk 0:00:19]}  Kd7 {[%clk 0:00:10]} 32. Qd6+ {[%clk 0:00:18]}  Kc8 {[%clk 0:00:10]} 33. Qxe6+ {[%clk 0:00:17]}  Rd7 {[%clk 0:00:10]} 34. Qe8+ {[%clk 0:00:16]}  Kc7 {[%clk 0:00:10]} 35. Qb8# {[%clk 0:00:15]} 1-0


[Site "https://www.chess.com"]

[Event "Titled Tuesday Blitz August 23 Early 2022"]
[White "Ladopoulos, Dimitrios"]
[Black "Moroni, Luca Jr"]
[WhiteFideId "4239580"]
[BlackFideId "865834"]
[WhiteElo "2195"]
[BlackElo "2573"]
[Result "0-1"]
[Round "02"]
[TimeControl "180+1"]
[Date "2022.08.23"]
[WhiteClock "0:00:22"]
[BlackClock "0:00:53"]

1. Nf3 {[%clk 0:02:19]}  d5 {[%clk 0:02:59]} 2. d4 {[%clk 0:02:19]}  e6 {[%clk 0:02:57]} 3. c4 {[%clk 0:02:20]}  a6 {[%clk 0:02:57]} 4. cxd5 {[%clk 0:02:17]}  exd5 {[%clk 0:02:58]} 5. Bf4 {[%clk 0:02:16]}  Nf6 {[%clk 0:02:58]} 6. e3 {[%clk 0:02:17]}  Bd6 {[%clk 0:02:58]} 7. Bxd6 {[%clk 0:02:16]}  Qxd6 {[%clk 0:02:59]} 8. Nc3 {[%clk 0:02:17]}  Bg4 {[%clk 0:02:57]} 9. Bd3 {[%clk 0:02:17]}  O-O {[%clk 0:02:56]} 10. Qc2 {[%clk 0:02:14]}  Bxf3 {[%clk 0:02:55]} 11. gxf3 {[%clk 0:02:15]}  c5 {[%clk 0:02:52]} 12. dxc5 {[%clk 0:02:14]}  Qxc5 {[%clk 0:02:53]} 13. Ne2 {[%clk 0:02:15]}  Qd6 {[%clk 0:02:50]} 14. O-O {[%clk 0:02:13]}  Nc6 {[%clk 0:02:49]} 15. Rac1 {[%clk 0:02:13]}  Rac8 {[%clk 0:02:42]} 16. Qd2 {[%clk 0:02:13]}  Rfe8 {[%clk 0:02:26]} 17. a3 {[%clk 0:02:11]}  Rcd8 {[%clk 0:02:26]} 18. Rfd1 {[%clk 0:02:02]}  Qe5 {[%clk 0:02:19]} 19. f4 {[%clk 0:01:59]}  Qe6 {[%clk 0:02:15]} 20. Ng3 {[%clk 0:01:48]}  g6 {[%clk 0:02:02]} 21. f5 {[%clk 0:01:47]}  Qe5 {[%clk 0:02:00]} 22. Qe2 {[%clk 0:01:44]}  d4 {[%clk 0:01:51]} 23. fxg6 {[%clk 0:01:41]}  hxg6 {[%clk 0:01:50]} 24. exd4 {[%clk 0:01:24]}  Qxd4 {[%clk 0:01:43]} 25. Qc2 {[%clk 0:01:21]}  Qg4 {[%clk 0:01:18]} 26. Be2 {[%clk 0:00:56]}  Qf4 {[%clk 0:01:04]} 27. Bc4 {[%clk 0:00:50]}  Ne5 {[%clk 0:00:57]} 28. Be2 {[%clk 0:00:46]}  Nc6 {[%clk 0:00:54]} 29. Bc4 {[%clk 0:00:43]}  Kg7 {[%clk 0:00:54]} 30. Rxd8 {[%clk 0:00:41]}  Rxd8 {[%clk 0:00:54]} 31. Qb3 {[%clk 0:00:22]}  Qxc1+ {[%clk 0:00:53]} 0-1


[Site "https://www.chess.com"]

[Event "Titled Tuesday Blitz August 23 Early 2022"]
[White "Le, Tuan Minh"]
[Black "Piesik, Piotr"]
[WhiteFideId "12401153"]
[BlackFideId "1136194"]
[WhiteElo "2530"]
[BlackElo "2221"]
[Result "1-0"]
[Round "02"]
[TimeControl "180+1"]
[Date "2022.08.23"]
[WhiteClock "0:00:48"]
[BlackClock "0:00:26"]

1. d4 {[%clk 0:03:00]}  c5 {[%clk 0:02:59]} 2. c3 {[%clk 0:03:01]}  Nf6 {[%clk 0:02:58]} 3. Nf3 {[%clk 0:03:01]}  cxd4 {[%clk 0:02:59]} 4. cxd4 {[%clk 0:03:02]}  d5 {[%clk 0:02:59]} 5. Nc3 {[%clk 0:03:02]}  Nc6 {[%clk 0:02:55]} 6. Bf4 {[%clk 0:03:03]}  a6 {[%clk 0:02:52]} 7. Rc1 {[%clk 0:03:02]}  e6 {[%clk 0:02:50]} 8. e3 {[%clk 0:03:02]}  Qb6 {[%clk 0:02:50]} 9. Qc2 {[%clk 0:02:53]}  Bd7 {[%clk 0:02:43]} 10. a3 {[%clk 0:02:52]}  Rc8 {[%clk 0:02:37]} 11. Bd3 {[%clk 0:02:53]}  Na5 {[%clk 0:02:30]} 12. Ne5 {[%clk 0:02:49]}  Qb3 {[%clk 0:02:26]} 13. Qd2 {[%clk 0:02:21]}  Nc4 {[%clk 0:02:19]} 14. Bxc4 {[%clk 0:02:16]}  dxc4 {[%clk 0:02:18]} 15. O-O {[%clk 0:02:08]}  Be7 {[%clk 0:02:08]} 16. e4 {[%clk 0:01:53]}  O-O {[%clk 0:02:07]} 17. Bg5 {[%clk 0:01:22]}  Rfd8 {[%clk 0:02:02]} 18. Rfd1 {[%clk 0:01:21]}  Be8 {[%clk 0:02:01]} 19. Qe2 {[%clk 0:01:17]}  b5 {[%clk 0:01:54]} 20. Nf3 {[%clk 0:01:15]}  h6 {[%clk 0:01:50]} 21. Bh4 {[%clk 0:01:15]}  b4 {[%clk 0:01:28]} 22. axb4 {[%clk 0:01:11]}  Qxb4 {[%clk 0:01:26]} 23. h3 {[%clk 0:01:11]}  Rb8 {[%clk 0:01:23]} 24. Rd2 {[%clk 0:01:11]}  a5 {[%clk 0:01:12]} 25. d5 {[%clk 0:01:09]}  exd5 {[%clk 0:01:09]} 26. exd5 {[%clk 0:01:10]}  Bb5 {[%clk 0:00:48]} 27. Nd4 {[%clk 0:01:05]}  Bd7 {[%clk 0:00:45]} 28. Rcd1 {[%clk 0:00:54]}  Re8 {[%clk 0:00:43]} 29. Qf3 {[%clk 0:00:54]}  Qd6 {[%clk 0:00:36]} 30. Bg3 {[%clk 0:00:54]}  Qb6 {[%clk 0:00:32]} 31. Bxb8 {[%clk 0:00:54]}  Rxb8 {[%clk 0:00:31]} 32. Nc6 {[%clk 0:00:54]}  Bxc6 {[%clk 0:00:29]} 33. dxc6 {[%clk 0:00:55]}  Bc5 {[%clk 0:00:27]} 34. Na4 {[%clk 0:00:52]}  Qb5 {[%clk 0:00:26]} 35. c7 {[%clk 0:00:48]} 1-0


[Site "https://www.chess.com"]